Cogmind - Beta 17 @@@ ROGUE MODE // 2026.07.22 @ 00:41:56 Player: abnormal202 Result: Destroyed by G-47 Trooper with Particle Gun Performance ------------- Evolutions (3) 1500 Regions Visited (5) 1000 Robots Destroyed (46) 230 Value Destroyed (1290) 1290 Prototype IDs (10) 200 Alien Tech Used (0) 0 Bonus (0) 0 TOTAL SCORE: 4220 Bonus ------- None Cogmind --------- Core Integrity 0/700 Matter 239/300 Energy 96/100 System Corruption 6% Temperature Cool (10) Movement Hovering (60) Location -7/Factory Parts ------- > --- POWER (2) -------- (None) > --- PROPULSION (3) --- Gravmag System > --- UTILITY (5) ------ Makeshift Power Shielding (fused) Self-contained Transmogrifier > --- WEAPON (3) ------- Spread Laser > --- INVENTORY (5) ---- Maxwheels Shield Generator Peak State ------------ > --- POWER ------------ Light Nuclear Core Micro Nuclear Core > --- PROPULSION ------- Armored Treads Medium Treads > --- UTILITY ---------- Improved Cooling System Large Storage Unit Improved Remote Force Field Self-contained Transmogrifier > --- WEAPON ----------- Cooled Particle Cannon Smartbomb Launcher > --- INVENTORY -------- Improved Ion Engine Micro Nuclear Core Maxwheels Large Storage Unit Weight Redist. System Seismic Detector Shield Generator Autogun Flamer [Rating: 58] Favorites ----------- Power Ion Engine Engine Ion Engine Power Core Micro Nuclear Core Propulsion Light Treads Treads Light Treads Leg Titanium Leg Hover Unit Gravmag System Utility Large Storage Unit Device Self-contained Transmogrifier Storage Large Storage Unit Processor Core Analyzer Protection Makeshift Power Shielding Weapon Autogun Energy Gun Medium Laser Energy Cannon Cooled Particle Cannon Ballistic Gun Autogun Ballistic Cannon Battle Cannon Launcher Improved Proton Missile Launcher Special Weapon Flamer Piercing Weapon Heavy Pick Build | -11 -10 -10 -10 -9 -7 ------- Run | Yrd Mat Min Sub Rec Fac Slots Evolved 6 | . . . . . 6 Power 1 | . . . . . 1 Propulsion 1 | . . . . . 1 Utility 3 | . . . . . 3 Weapon 1 | . . . . . 1 Parts Attached 34 | 7 3 2 6 2 14 Power 6 | 1 . . 1 1 3 Engine 3 | 1 . . 1 1 . Core 3 | . . . . . 3 Reactor . | . . . . . . Propulsion 5 | 2 . . 1 . 2 Treads 4 | 2 . . 1 . 1 Leg . | . . . . . . Wheel . | . . . . . . Hover 1 | . . . . . 1 Flight . | . . . . . . Utility 8 | 2 1 2 1 . 2 Device 4 | 1 . 1 1 . 1 Storage 3 | 1 1 1 . . . Processor 1 | . . . . . 1 Hackware . | . . . . . . Protection . | . . . . . . Artifact . | . . . . . . Weapon 15 | 2 2 . 3 1 7 Energy Gun 7 | 2 . . . . 5 Energy Cannon 1 | . . . . . 1 Ballistic Gun 5 | . 2 . 2 1 . Ballistic Cannon 1 | . . . 1 . . Launcher . | . . . . . . Special Weapon 1 | . . . . . 1 Impact Weapon . | . . . . . . Slashing Weapon . | . . . . . . Piercing Weapon . | . . . . . . Special Melee Weapon . | . . . . . . Unidentified Prototypes 3 | . . 1 1 . 1 Parts Lost 18 | . . . 3 . 15 Power 5 | . . . 1 . 4 Propulsion 3 | . . . 1 . 2 Utility 2 | . . . . . 2 Weapon 8 | . . . 1 . 7 Highest Loss Streak 11 | . . . 2 . 11 To Critical Strikes . | . . . . . . Average Backups 10 | 2 7 14 13 11 8 Power 1 | 1 2 3 1 . 1 Propulsion 2 | . 2 4 3 2 1 Utility 4 | . 1 5 5 5 4 Weapon 2 | . 1 2 2 3 1 Tool/Special . | . . . . . . Unused Backups 14 | . 2 1 5 1 5 Power 3 | . . . 2 . 1 Propulsion 5 | . 1 1 2 . 1 Utility 6 | . 1 . 1 1 3 Weapon . | . . . . . . Tool/Special . | . . . . . . Average Slot Usage (%) 90 | . 100 100 99 99 70 Engine 10 | . 14 14 13 13 4 Core 1 | . . . . . 5 Treads 24 | . 28 28 28 28 17 Device 14 | . 14 14 14 14 15 Storage 11 | . 14 14 14 14 6 Energy Gun 3 | . 11 . . . 3 Energy Cannon 1 | . . . . . 3 Ballistic Gun 17 | . 16 28 24 27 5 Ballistic Cannon 1 | . . . 3 . . Peak Build Rating 58 | 7 10 18 26 27 58 Average Rating 24 | 5 8 14 20 26 40 On Entrance 14 | . 7 10 18 25 27 Avg Prop Armor Cover (%) 5 | . . . . . 5 Naked Turns . | . . . . . . Heaviest Build 71 | 14 32 32 32 34 71 Greatest Support 68 | 40 40 40 43 40 68 Greatest Overweight (x) 11 | 3 . . . . 11 Average Overweight (x) . | . . . . . . Largest Inventory Capacity 20 | 8 15 20 15 15 15 Average Capacity 14 | 7 11 15 15 15 14 Most Carried 15 | 6 14 15 15 15 14 Average Carried 12 | 2 7 14 14 14 11 Final Capacity 15 | 8 15 15 15 15 5 Final Carried 15 | 3 14 15 15 14 5 Transmogrified Parts 31 | . . . 5 3 23 Integrity Recovered 686 | . . . 133 28 525 Class Distribution -------------------- 79% | Mutant 13% | Tank 4% | Skirmisher Dominant Class ---------------- Mutant | -10/Materials Mutant | -10/Mines Mutant | -10/Subcaves Mutant | -9/Recycling Tank | -7/Factory Resources | -11 -10 -10 -10 -9 -7 ----------- Run | Yrd Mat Min Sub Rec Fac Matter Collected 1093 | 270 102 . 245 94 382 Remotely . | . . . . . . Salvage Created 1394 | 105 203 . 183 60 843 Parts 105 | 9 22 . 14 4 56 Haulers Intercepted 1 | . 1 . . . . Recyclers Shooed . | . . . . . . Parts Field Recycled . | . . . . . . Retrieved Matter . | . . . . . . Parts Self-Destructed 9 | . . . 9 . . Prevented . | . . . . . . Parts Restored . | . . . . . . Kills | -11 -10 -10 -10 -9 -7 ------- Run | Yrd Mat Min Sub Rec Fac Combat Hostiles Destroyed 32 | . 8 . 8 1 15 Guns 20 | . 8 . 4 1 7 Cannons 5 | . . . 4 . 1 AOE 6 | . . . . . 6 Classes Destroyed 14 | 2 3 . 1 1 7 Worker 5 | . . . . . 5 Builder 3 | . . . . . 3 Tunneler 2 | 2 . . . . . Hauler 1 | . 1 . . . . Recycler 1 | 1 . . . . . Operator 1 | . . . . . 1 Watcher 1 | . . . . . 1 Swarmer 10 | . 6 . 4 . . Grunt 11 | . 2 . . . 9 Duelist 1 | . . . . . 1 Sentry 1 | . . . . 1 . Hunter 2 | . . . . . 2 Programmer 3 | . . . . . 3 Subdweller 4 | . . . 4 . . Best Kill Streak 4 | 2 3 . 4 1 4 Combat Bots Only 4 | . 3 . 4 1 3 Max Kills in Single Turn 4 | 1 1 . 1 1 4 Gunslinging . | . . . . . . Exploded 2 | . . . . . 2 Melee . | . . . . . . Uniques/NPCs Destroyed . | . . . . . . Combat | -11 -10 -10 -10 -9 -7 -------- Run | Yrd Mat Min Sub Rec Fac Hostile Shots Fired 383 | . 21 . 106 6 250 Missed 122 | . 7 . 37 4 74 Hits 261 | . 14 . 69 2 176 Melee 4 | . . . . . 4 Projectile 257 | . 14 . 69 2 172 Critical Strikes 6 | . . . 1 . 5 Damage Taken 3574 | . 131 . 686 30 2727 Core 845 | . 29 . 100 . 716 Absorbed by Shields 183 | . . . . . 183 Core Remaining (%) 74 | 100 . . . 48 . Volleys Fired 109 | 7 16 . 30 1 55 Largest 3 | 2 2 . 2 2 3 Hottest 192 | 90 90 . 55 48 192 Shots Fired 203 | 14 32 . 43 2 112 Gun 142 | 14 32 . 27 2 67 Cannon 39 | . . . 16 . 23 Launcher 17 | . . . . . 17 Special 5 | . . . . . 5 Kinetic 100 | . 24 . 43 2 31 Thermal 70 | 14 8 . . . 48 Explosive 8 | . . . . . 8 Electromagnetic 23 | . . . . . 23 Robot Hit Streak 9 | 3 5 . 7 9 7 Robot Miss Streak 5 | 1 5 . 2 . 4 Penetration Max . | . . . . . . Secondary Targets 4 | . 1 . 2 . 1 Max Gunslinging Chain 1 | . 1 . 1 . 1 Shots Hit Robots 103 | 9 13 . 21 2 58 Core Hits 68 | 4 10 . 11 2 41 Critical Kills . | . . . . . . Critical Parts Destroyed . | . . . . . . Critical Strikes 3 | 2 . . . . 1 Burn 3 | 2 . . . . 1 Melee Attacks 2 | . . . . . 2 Impact . | . . . . . . Slashing . | . . . . . . Piercing 2 | . . . . . 2 Sneak Attacks . | . . . . . . Combat Hostiles . | . . . . . . Follow-up Attacks . | . . . . . . Damage Inflicted 3217 | 106 174 . 392 30 2515 Guns 1220 | 106 172 . 177 30 735 Cannons 488 | . . . 215 . 273 Explosions 1422 | . . . . . 1422 Melee 37 | . . . . . 37 Ramming 12 | . 2 . . . 10 Kinetic 756 | . 126 . 392 30 208 Thermal 1120 | 106 46 . . . 968 Explosive 755 | . . . . . 755 Electromagnetic 537 | . . . . . 537 Impact . | . . . . . . Slashing . | . . . . . . Piercing 37 | . . . . . 37 Highest Corruption 6 | . 1 1 1 1 6 Average Corruption 2 | . 1 1 1 1 5 Corruption Purged . | . . . . . . Corruption Blocked . | . . . . . . Effects 34 | . 1 1 6 3 23 Message Errors 5 | . . . . . 5 Matter Fused 11 | . . 1 3 . 7 Heat Flow Errors 9 | . 1 . 1 1 6 Energy Discharges 2 | . . . 2 . . Data Loss (minor) 4 | . . . . 2 2 Misfires 1 | . . . . . 1 Alerts 1 | . . . . . 1 Weapon Failures 1 | . . . . . 1 Overload Shots . | . . . . . . Overflow Damage 153 | . . . 17 . 136 Projectiles 17 | . . . 17 . . Explosions 136 | . . . . . 136 Melee . | . . . . . . Knockbacks 4 | . . . 4 . . Impact . | . . . . . . Kinetic 3 | . . . 3 . . Secondary 1 | . . . 1 . . Self-Inflicted Damage 66 | . . . . . 66 Shots 2 | . . . . . 2 Rammed 7 | . 1 . . 1 5 Targets Rammed 7 | . 1 . . 1 5 Kicked . | . . . . . . Crushed . | . . . . . . Highest Temperature 471 | 90 137 . 136 142 471 Average Temperature 85 | 38 36 . 78 62 116 Received Heat Transfer 1362 | . 18 . 192 9 1143 Effects 5 | . . . . . 5 Shutdowns 1 | . . . . . 1 Interference 2 | . . . . . 2 Short Circuit 1 | . . . . . 1 Damage (minor) 1 | . . . . . 1 Siege Activations . | . . . . . . Martial Activations . | . . . . . . Shielding Activations . | . . . . . . Robots Disrupted . | . . . . . . Combat Hostiles . | . . . . . . Robots Corrupted . | . . . . . . Combat Hostiles . | . . . . . . Parts Fried 2 | . . . . . 2 Impact Corruptions . | . . . . . . Robots Melted 1 | . . . . . 1 Combat Hostiles 1 | . . . . . 1 Parts Melted 3 | 1 . . . . 2 Heat Transferred 2149 | 433 124 . . . 1592 Parts Sabotaged . | . . . . . . Parts Stolen . | . . . . . . Parts Stripped . | . . . . . . Power Chain Reactions 2 | . . . . . 2 Alert | -11 -10 -10 -10 -9 -7 ------- Run | Yrd Mat Min Sub Rec Fac Maximum Alert Level 1 | . . . . . 1 Low Security (%) 90 | 100 100 100 . 100 78 Level 1 9 | . . . . . 21 Level 2 . | . . . . . . Level 3 . | . . . . . . Level 4 . | . . . . . . Level 5 . | . . . . . . High Security . | . . . . . . Max Security . | . . . . . . Peak Influence 323 | 5 127 27 . 30 323 Initial 30 | . . 27 . 30 . Average 55 | 1 57 6 . 3 89 Influence Increases 1136 | 15 259 . 170 32 660 Destroy 0b10 Robot/C 560 | . 160 . 80 20 300 Destroy 0b10 Robot/NC 70 | 15 5 . . . 50 Destroy Leader 124 | . 32 . . . 92 Successful Hack 12 | . . . . 12 . Disable Machine 90 | . 15 . . . 75 Destroy Structure 70 | . 2 . . . 68 Lose Combat Pursuer 210 | . 45 . 90 . 75 Influence Decreases 923 | 15 188 71 106 96 447 Entered New Map 78 | . . 44 . 34 . Time Decay 675 | 15 188 27 76 62 307 Lost Part 170 | . . . 30 . 140 Squads Dispatched 8 | . 1 . . . 7 Investigation . | . . . . . . Extermination 3 | . . . . . 3 Reinforcement 5 | . 1 . . . 4 Assault . | . . . . . . Garrison . | . . . . . . Intercept . | . . . . . . Searches Triggered . | . . . . . . Construction Impeded 1 | . . . . . 1 Haulers Reinforced . | . . . . . . Active Scanning Responses . | . . . . . . Cargo Convoy Interrupts . | . . . . . . Stealth | -11 -10 -10 -10 -9 -7 --------- Run | Yrd Mat Min Sub Rec Fac Distress Signals 4 | . 2 . . . 2 Communications Jammed 1 | . . . . . 1 Distress Signals 1 | . . . . . 1 Times Spotted 55 | . 13 . 13 1 28 Peak Tracking Total 6 | . 5 . 5 1 6 Tactical Retreats 8 | . 2 . 2 . 4 Traps | -11 -10 -10 -10 -9 -7 ------- Run | Yrd Mat Min Sub Rec Fac Traps Triggered 1 | . 1 . . . . Indirectly . | . . . . . . Trap Hack Attempts . | . . . . . . Triggered . | . . . . . . Disarmed . | . . . . . . Reprogrammed . | . . . . . . Reused . | . . . . . . Traps Extracted . | . . . . . . Installed . | . . . . . . Triggered . | . . . . . . Machines | -11 -10 -10 -10 -9 -7 ---------- Run | Yrd Mat Min Sub Rec Fac Machines Disabled 7 | . 1 . 1 . 5 Max in Single Turn 3 | . 1 . 1 . 3 Machines Repaired . | . . . . . . Machines Dismantled . | . . . . . . Machines Sabotaged . | . . . . . . Overloaded Fab Kills . | . . . . . . Hacking | -11 -10 -10 -10 -9 -7 --------- Run | Yrd Mat Min Sub Rec Fac Machines Accessed 5 | . . . 1 3 1 Terminals 4 | . . . . 3 1 Fabricators . | . . . . . . Repair Stations . | . . . . . . Recycling Units . | . . . . . . Scanalyzers . | . . . . . . Garrison Access . | . . . . . . Total Hacks 16 | . . . 8 7 1 Successful 13 | . . . 8 4 1 Failed 3 | . . . . 3 . Catastrophic . | . . . . . . Database Lockouts . | . . . . . . Manual . | . . . . . . Terminals 8 | . . . . 7 1 Fabricators . | . . . . . . Repair Stations . | . . . . . . Recycling Units . | . . . . . . Scanalyzers . | . . . . . . Garrison Access . | . . . . . . Terminal Hacks 13 | . . . 8 4 1 Record 8 | . . . 8 . . Prototype ID Bank 2 | . . . . 2 . Branch Access Points 1 | . . . . 1 . Alert Level 1 | . . . . 1 . Dispatch Records 1 | . . . . . 1 Fabricator Hacks . | . . . . . . Repair Station Hacks . | . . . . . . Recycling Unit Hacks . | . . . . . . Scanalyzer . | . . . . . . Garrison Access Hacks . | . . . . . . Unauthorized Hacks . | . . . . . . Terminals . | . . . . . . Fabricators . | . . . . . . Repair Stations . | . . . . . . Recycling Units . | . . . . . . Scanalyzers . | . . . . . . Garrison Access . | . . . . . . Data Cores Recovered 1 | . . . . . 1 Used . | . . . . . . Hacking Detections 1 | . . . . 1 . Full Trace Events . | . . . . . . Feedback Events . | . . . . . . Feedback Blocked . | . . . . . . Robot Schematics Acquired . | . . . . . . Robots Built . | . . . . . . Authchips . | . . . . . . Time . | . . . . . . Total Robot Build Rating . | . . . . . . Part Schematics Acquired . | . . . . . . Parts Built . | . . . . . . Authchips . | . . . . . . Time . | . . . . . . Total Part Build Rating . | . . . . . . Part Studies Acquired . | . . . . . . Parts Repaired . | . . . . . . Time . | . . . . . . Parts Recycled . | . . . . . . Recycled Matter . | . . . . . . Retrieved Matter . | . . . . . . Retrieved Components . | . . . . . . Parts Scanalyzed . | . . . . . . Part Schematics Acquired . | . . . . . . Parts Damaged . | . . . . . . Bothacking | -11 -10 -10 -10 -9 -7 ------------ Run | Yrd Mat Min Sub Rec Fac Used RIF Installer . | . . . . . . Robots Hacked . | . . . . . . Non-combat . | . . . . . . Combat . | . . . . . . Robot Hacks Applied . | . . . . . . Relay Couplers Released . | . . . . . . Fabnet Peak Effective % . | . . . . . . Robots Rewired . | . . . . . . Allies Hacked . | . . . . . . Hacks Repelled . | . . . . . . Allies | -11 -10 -10 -10 -9 -7 -------- Run | Yrd Mat Min Sub Rec Fac Total Allies . | . . . . . . Largest Group . | . . . . . . Highest-Rated Group . | . . . . . . Highest-Rated Ally . | . . . . . . Total Orders . | . . . . . . Ally Attacks . | . . . . . . Total Damage . | . . . . . . Kills . | . . . . . . Allies Corrupted . | . . . . . . Allies Melted . | . . . . . . Intel | -11 -10 -10 -10 -9 -7 ------- Run | Yrd Mat Min Sub Rec Fac Active Infowar (turns) 1659 | 31 601 156 659 . 212 Sensors 883 | . . 89 659 . 135 Seismic 699 | 31 601 67 . . . Jamming 77 | . . . . . 77 Robot Analysis Total . | . . . . . . Derelict Logs Recovered 2 | . . 1 1 . . Drone Launches . | . . . . . . Drone Recoveries . | . . . . . . Exploration | -11 -10 -10 -10 -9 -7 ------------- Run | Yrd Mat Min Sub Rec Fac Turns Passed 3435 | 124 601 156 991 465 1098 Spaces Moved 1730 | 64 259 72 558 277 500 Core 64 | 19 . . . . 45 Treads 1646 | 45 259 72 558 277 435 Legs . | . . . . . . Wheels . | . . . . . . Hover 20 | . . . . . 20 Flight . | . . . . . . Fastest Speed 50 | 50 160 160 160 165 50 Average Speed 161 | 137 160 160 160 165 166 Slowest Speed 600 | 200 160 160 165 165 600 Overloaded Moves . | . . . . . . Propulsion Burnouts . | . . . . . . Robots Hopped . | . . . . . . Potential Cave-ins . | . . . . . . Cave-ins Triggered . | . . . . . . Exploration Rate (%) 30 | 5 39 29 27 64 19 Regions Visited 5 Branch Regions 3 Pre-discovered Areas . | . . . . . . Known Exits Taken . | . . . . . . Unknown Exits Taken 5 | 1 1 1 1 1 . Scrap Searched 3 | . . . 3 . . Spaces Dug . | . . . . . . Terrain Destroyed 74 | . . . 1 . 73 Melee . | . . . . . . Projectile 5 | . . . 1 . 4 AOE 69 | . . . . . 69 Terrain Rammed . | . . . . . . Walls Destroyed . | . . . . . . Machines Disabled . | . . . . . . Actions | -11 -10 -10 -10 -9 -7 --------- Run | Yrd Mat Min Sub Rec Fac Total 2162 | 86 418 112 620 282 644 Wait 222 | . 124 35 9 . 54 Move 1725 | 63 258 71 557 276 500 Hop . | . . . . . . Pick Up 41 | 9 13 2 8 1 8 Fast Attach 5 | 1 . . . 1 3 Attach 20 | 6 . . 2 . 12 Detach . | . . . . . . Swap 16 | . 3 3 5 1 4 Drop 15 | . 3 1 9 1 1 Fire 109 | 7 16 . 30 1 55 Melee 2 | . . . . . 2 Ram 4 | . . . . . 4 Kick . | . . . . . . Crush 3 | . 1 . . 1 1 Escape Stasis . | . . . . . . Rewire . | . . . . . . Trap . | . . . . . . Miscellaneous . | . . . . . . Route ------- -11/Scrapyard -10/Materials (discovered 2 exits: [*Mat] / [*Min]) -10/Mines -10/Subcaves -9/Recycling -7/Factory (discovered 1 exit: [*Fac]) History --------- Turn | Location | Event 9 | -11/Scrapyard | Discovered new exit (range 15) 125 | -11/Scrapyard | Entered Materials 316 | -10/Materials | Build established: Mutant 448 | -10/Materials | Discovered new exit (range 13) 569 | -10/Materials | Discovered new exit (range 7) 726 | -10/Materials | Entered Mines 770 | -10/Mines | Learned Materials machine intel 785 | -10/Mines | Found a damaged Exp. Sensor Array with a note attached 792 | -10/Mines | Found Prototype Device 793 | -10/Mines | Identified Exp. Sensor Array 862 | -10/Mines | Discovered new exit (range 4) 882 | -10/Mines | Entered Subcaves 883 | -10/Subcaves | Approached by a straggling Scientist 1179 | -10/Subcaves | Learned location of 1 exit from Materials 1498 | -10/Subcaves | Visited 4L-MR0's lab 1540 | -10/Subcaves | Found Prototype Device 1541 | -10/Subcaves | Identified Sfc. Transmogrifier 1570 | -10/Subcaves | Found Prototype Wheel 1645 | -10/Subcaves | Discovered new exit (range 15) 1828 | -10/Subcaves | Shifting Twisted Machinery released Battle Rifle 1864 | -10/Subcaves | Core integrity fell below 50% 1873 | -10/Subcaves | Entered Recycling 2313 | -9/Recycling | Discovered new exit (range 16) 2338 | -9/Recycling | Entered Factory 2338 | -7/Factory | Evolved 6 slots: Power x1, Propulsion x1, Utility x3, Weapon x1 2658 | -7/Factory | Attached CPS modules to P-60 Hacker 2683 | -7/Factory | Discovered new exit (range 15) 3167 | -7/Factory | Build established: Tank 3352 | -7/Factory | Core integrity fell below 50% 3394 | -7/Factory | Core integrity fell below 20% 3426 | -7/Factory | Lost 11 parts (3p1n2u5w) 3436 | -7/Factory | Destroyed by G-47 Trooper with Particle Gun Last Messages --------------- 03389_ U-05 Engineer builds a Wall. 03390_ Acquired 22 matter. 03390_ U-05 Engineer lays Concrete. 03392_ U-05 Engineer builds a Wall. 03392_ U-05 Engineer lays Concrete. 03395_ Mic. Nuclear Core destroyed. 03395_ U-05 Engineer builds a Wall. 03396_ U-05 Engineer lays Concrete. 03397_ U-05 Engineer builds a Wall. 03397_ U-05 Engineer lays Concrete. 03399_ Dropped Lrg. Storage Unit. 03400_ U-05 Engineer builds a Wall. 03408_ U-05 Engineer lays Concrete. 03413_ Connecting with Terminal... 03420_ Acquired Gravmag System. 03422_ Acquired Core Analyzer. 03424_ Sfc. Transmogrifier converts Core Analyzer into Mak. Power Shielding. 03426_ System corrupted: Heat flow error (+207). 03432_ Acquired Spread Laser. Map ----- +----------------------------------------------------+ | #?? ???????????????????????????????????????? | | #?# #??????????????????????????????????????? | | #?# #?????+????????????????????????????????? | | #?# #????# #???????????????????????????????? | | ### ##???# #???????????????????????????????? | | #### #???# #???????????????????????????????? | | #???# #???????????????????????????????? | | #???# #???????????????????????????????? | | ##### #############???????????????????? | | #???????????????????? | | ^ #???????????????????? | | !! ""#???????????????????? | | ^ !! ""#???????????????????? | | ^ ! ""#???????????????????? | | !! T#???????????????????? | | =! ^ g ""#???????????????????? | | ###################g ""#???????????????????? | | ??????????????????# ""#???????????????????? | | ??????????????????# #???????????????????? | | ??????????????????#!! """ #???????????????????? | | ???????????????####! """ #???????????????????? | | ???????????????+ """ #???????????????????? | | ???????????????# #???????????????????? | | ???????????????# ! #???????????????????? | | ???????????????# #???????????????????? | | ???????????????# ########@####???????????????????? | | ???????????????# ?????? ?????????????????????? | | ???????????????#????? ???????????????????? | | ???????????????????# """ """ ?????????????????? | | ???????????????????# """ """ #????????????????? | | ???????????????????# """ """ #????????????????? | | ???????????????????# #????????????????? | | ???????????????????# """ """ ?????????????????? | | ???????????????????# """ """ ?????????????????? | | ???????????????????# ?????""???????????????????? | | ???????????????????# ??????????????????????????? | | ???????????????????# ???????????????????????????? | | ???????????????????# ????????????????????????????? | | ?????????????????????????????????????????????????? | | ?????????????????????????????????????????????????? | | ?????????????????????????????????????????????????? | | ?????????????????????????????????????????????????? | | ?????????????????????????????????????????????????? | | ?????????????????????????????????????????????????? | | ?????????????????????????????????????????????????? | | ?????????????????????????????????????????????????? | | ?????????????????????????????????????????????????? | | ?????????????????????????????????????????????????? | | ?????????????????????????????????????????????????? | | ?????????????????????????????????????????????????? | +----------------------------------------------------+ Best States ------------- Heat Dissipation 61 Energy Generation 24 Energy Capacity 325 Matter Stores 300 Matter Capacity 300 Sight Range 16 Robot Scan Range 20 Terrain Scan Density 10 Jamming Range 12 Power Shielding 15 Evasion (%) 50 Recoil Reduction 3 Item Schematics ----------------- None Robot Schematics ------------------ None Fabricated ------------ Nothing Repaired ---------- Nothing Studied --------- None Alien Tech Used ----------------- None Achievements -------------- Mistaken Identity Thread The Needle Around The Corner Challenges ------------ None Game ------ Seed XenonLongswordArmor Manual? 0 Play Time 00:35:51 Cumulative 42.5 hours Start 2026.07.21 @ 23:57:05 End 2026.07.22 @ 00:41:56 Sessions 3 Manual Loads 0 Difficulty Rogue Special Mode None Game No. 176 Rogue 176 Adventurer 0 Explorer 0 Win Type - Total 0 Types 0/0/0/0/0/0/0/0/0/0 Lore% 32 Gallery% 29 Achievement% 21 Wizard Run 0 Options --------- Layout 1 ASCII 0 Keyboard 0 Movement Mouse Keybinds 0 Fullscreen 1 Font 24/Smallcaps Map View 50x35 Zoom Use 37% Tactical HUD 1 Map Filters NONE Filters NONE Steam 1 RUN: 87ec2cae-37b8-4384-8e21-068e5b089402